bitfinex/quotes_ETHUSD_20250329
["timestamp","ask_amount","ask_price","bid_price","bid_amount"]
[1743291964597,1.35158813,1828.7,1828.6,5.46862]
[1743291964890,1.35158813,1828.7,1828.5,15.59893]
[1743291966767,1.35158813,1828.8,1828.5,21.06769]
[1743291967083,5.46778,1828.9,1828.6,5.46864]
[1743291967875,5.46778,1828.9,1828.5,21.0676]
[1743291968176,5.46778,1828.9,1828.5,17.78709]
[1743291968581,5.46778,1828.9,1828.6,10.13]
[1743291969275,5.4681,1828.8,1828.6,10.13]
[1743291969474,5.70916,1828.7,1828.6,10.13]
[1743291973375,5.46956,1828.3,1828.2,10.13]
[1743291973701,11.18083,1828.2,1827.9,10.13]
[1743291974202,5.47016,1828.1,1827.9,10.13]
[1743291974414,5.47016,1828.1,1827.8,0.7537]
[1743291974415,5.47056,1828.0,1827.8,10.13]
[1743291974629,5.47056,1828.0,1827.6,5.47164]
[1743291974630,7.7936644,1827.9,1827.7,10.13]
[1743291975400,8.0344644,1827.9,1827.7,10.13]
[1743291975713,5.47105,1827.8,1827.7,10.13]
[1743291976080,2.5636044,1827.9,1827.7,10.13]
[1743291976333,2.3228044,1827.9,1827.7,10.13]
[1743291977202,7.4378044,1828.1,1827.8,5.47105]
[1743291977409,2.3228044,1828.1,1827.8,5.47105]
[1743291977779,2.3228044,1828.3,1827.9,5.47053]
[1743291977977,34.4189,1828.6,1828.0,6.22391]
[1743291977978,8.0325944,1828.5,1828.0,6.22391]
[1743291978201,13.5018044,1828.5,1828.1,5.47014]
[1743291978510,8.0325944,1828.5,1828.1,5.47014]
[1743291978713,0.2403797,1828.4,1828.2,5.46984]
[1743291978892,0.2403797,1828.4,1828.2,5.46973]
[1743291979282,0.2403797,1828.4,1828.1,17.782545]
[1743291980203,0.2403797,1828.4,1828.1,23.252455]
[1743291981812,0.2403797,1828.4,1828.1,12.312405]
[1743291981979,5.9505697,1828.4,1828.1,10.13]
[1743291982883,5.9505697,1828.4,1828.1,15.60015]
[1743291983415,5.9505697,1828.4,1828.2,10.13]
[1743291984594,0.2403797,1828.4,1828.2,11.690015]
[1743291985813,0.2403797,1828.4,1828.2,10.13]
[1743291989914,5.7097797,1828.4,1828.2,10.13]
[1743291990092,2.5636044,1828.3,1828.2,10.13]
[1743291990293,2.80683083,1828.3,1828.2,10.13]
[1743291990506,8.27639083,1828.3,1828.2,10.13]
[1743291990904,2.80683083,1828.3,1828.2,10.13]
[1743291992318,8.27639083,1828.3,1828.2,10.13]
[1743291993099,2.80683083,1828.3,1828.2,10.13]
[1743291993321,2.56603083,1828.3,1828.2,10.13]
[1743291995086,2.56603083,1828.3,1828.1,16.36664]
[1743291996627,2.56603083,1828.3,1828.1,10.8966]
[1743292006527,2.56603083,1828.3,1828.1,16.36668]
[1743292006723,2.56603083,1828.3,1828.1,18.550374]
[1743292006907,2.56603083,1828.3,1828.1,24.020414]
[1743292007117,0.24322643,1828.3,1828.1,24.020304]
[1743292007525,0.24322643,1828.3,1828.2,15.65455634]
[1743292007729,0.24322643,1828.3,1828.2,16.42576]
[1743292007909,2.3228044,1828.7,1828.4,5.46925]
[1743292008701,0.24198558,1828.6,1828.4,5.46925]
[1743292008901,2.3228044,1828.7,1828.4,5.46925]
[1743292009123,0.24315341,1828.6,1828.4,5.46925]
[1743292009301,2.3228044,1828.7,1828.4,5.46925]
[1743292009503,0.24315341,1828.6,1828.4,5.46925]
[1743292009739,2.3228044,1828.7,1828.4,7.029175]
[1743292009934,0.24315341,1828.6,1828.4,7.029175]
[1743292010113,2.3228044,1828.7,1828.4,7.029175]
[1743292010320,0.24315341,1828.6,1828.4,7.029175]
[1743292010521,2.3228044,1828.7,1828.4,7.029175]
[1743292010725,0.24315341,1828.6,1828.4,7.029175]
[1743292010926,2.3228044,1828.7,1828.4,7.029175]
[1743292011126,0.24315341,1828.6,1828.4,5.46925]
[1743292011344,7.7911744,1828.7,1828.3,15.59948]
[1743292011641,0.24315341,1828.6,1828.3,15.59948]
[1743292012008,5.46981,1828.3,1828.0,10.13]
[1743292012347,0.24424819,1828.2,1828.0,5.47031]
[1743292012642,0.24424819,1828.2,1828.0,7.577402]
[1743292012841,0.24424819,1828.2,1828.0,2.107092]
[1743292013033,0.24424819,1828.2,1827.9,15.60067]
[1743292014442,0.24424819,1828.2,1827.9,21.0713]
[1743292015547,0.24424819,1828.2,1828.0,10.13]
[1743292016449,0.24424819,1828.2,1828.1,5.47016]
[1743292016666,0.24424819,1828.2,1828.1,6.28006]
[1743292017516,0.24424819,1828.2,1828.1,0.8099]
[1743292017716,0.24424819,1828.2,1828.0,16.41026]
[1743292018542,0.24424819,1828.2,1828.0,18.45520703]
[1743292018922,0.24424819,1828.2,1828.0,23.92541703]
[1743292019122,0.24424819,1828.2,1828.0,18.45511703]
[1743292021122,0.48504819,1828.2,1828.0,10.13]
[1743292021394,7.7930344,1828.1,1827.8,10.13]
[1743292021956,0.24235057,1828.0,1827.8,10.13]
[1743292022329,0.24235057,1828.0,1827.8,15.601]
[1743292022690,0.24235057,1828.0,1827.9,5.47075]
[1743292023239,0.24235057,1828.0,1827.8,15.601]
[1743292025669,0.24235057,1828.0,1827.8,21.0719]
[1743292025848,0.24235057,1828.0,1827.9,6.28435]
[1743292026238,7.7920344,1828.5,1828.1,5.46987]
[1743292026571,0.2408,1828.6,1828.4,5.46926]
[1743292026770,2.3228044,1828.7,1828.4,5.46926]
[1743292027275,7.7911844,1828.7,1828.3,16.41313]
[1743292030277,7.7911844,1828.7,1828.3,6.28313]
[1743292030950,7.7911844,1828.7,1828.3,11.75251]
[1743292031147,7.7911844,1828.7,1828.3,13.940761]
[1743292031346,2.3228044,1828.7,1828.4,5.46925]
[1743292032350,7.7911744,1828.7,1828.4,5.46925]
[1743292033777,2.3228044,1828.7,1828.4,5.46912]
[1743292033980,2.3228044,1828.7,1828.5,5.46878]
[1743292034151,2.3228044,1828.7,1828.6,5.46866]
[1743292034352,2.3228044,1828.7,1828.5,6.015758]
[1743292035378,2.3228044,1828.7,1828.5,5.46888]
[1743292038682,0.24578068,1828.6,1828.5,5.46888]
[1743292039178,2.3228044,1828.7,1828.5,15.59888]
[1743292039386,0.24578068,1828.6,1828.5,15.59888]
[1743292039683,2.3228044,1828.7,1828.5,15.59888]
[1743292039979,0.24578068,1828.6,1828.5,15.59888]
[1743292040281,2.3228044,1828.7,1828.5,15.59888]
[1743292040482,0.24578068,1828.6,1828.5,10.13]
[1743292040681,2.3228044,1828.7,1828.5,10.13]
[1743292040882,0.24578068,1828.6,1828.5,10.13]
[1743292041082,2.3228044,1828.7,1828.5,10.13]
[1743292041420,8.0321144,1828.7,1828.5,10.13]
[1743292041597,0.24578068,1828.6,1828.5,10.13]
[1743292041880,8.0321144,1828.7,1828.5,10.13]
[1743292042053,0.24578068,1828.6,1828.5,10.13]
[1743292042255,8.0321144,1828.7,1828.5,10.13]
[1743292042456,0.24578068,1828.6,1828.5,10.13]
[1743292042890,2.3228044,1828.7,1828.5,15.59896]
[1743292043056,0.24578068,1828.6,1828.5,15.59896]
[1743292043257,2.3228044,1828.7,1828.5,15.59896]
[1743292043580,0.24578068,1828.6,1828.5,15.59896]
[1743292043984,2.3228044,1828.7,1828.5,15.59896]
[1743292044187,0.24578068,1828.6,1828.5,15.59896]
[1743292044568,2.3228044,1828.7,1828.5,15.59896]
[1743292044770,0.24578068,1828.6,1828.5,15.59896]
[1743292044970,0.24578068,1828.6,1828.5,5.46896]
[1743292045170,2.3228044,1828.7,1828.5,5.46896]
[1743292045365,0.24578068,1828.6,1828.5,5.46896]
[1743292045572,0.24578068,1828.6,1828.4,21.06814]
[1743292045785,2.3228044,1828.7,1828.4,21.06814]
[1743292046089,2.3228044,1828.7,1828.4,21.06817]
[1743292046269,0.24578068,1828.6,1828.4,21.06817]
[1743292046472,2.3228044,1828.7,1828.4,23.256347]
[1743292046671,2.3228044,1828.7,1828.5,5.46893]
[1743292047999,2.3228044,1828.7,1828.4,17.787217]
[1743292048301,2.3228044,1828.7,1828.4,23.256277]
[1743292049104,2.3228044,1828.7,1828.5,5.46892]
[1743292051419,2.3228044,1828.7,1828.5,7.7945337]
[1743292052401,2.3228044,1828.9,1828.7,5.46824]
[1743292052600,2.3228044,1828.9,1828.6,6.28706]
[1743292052799,2.3228044,1828.9,1828.6,11.7556]
[1743292053607,0.24651035,1828.8,1828.6,6.28704]
[1743292053803,0.24651035,1828.8,1828.6,7.69519937]
[1743292054007,2.3228044,1828.9,1828.6,7.69519937]
[1743292054190,0.24651035,1828.7,1828.6,7.69519937]
[1743292054388,2.3228044,1828.9,1828.6,6.28704]
[1743292054579,0.24651035,1828.7,1828.6,6.28704]
[1743292054779,2.3228044,1828.9,1828.6,6.28704]
[1743292055280,0.2474589,1828.8,1828.6,6.28704]
[1743292055482,2.3228044,1828.9,1828.6,7.69519937]
[1743292055692,0.2474589,1828.7,1828.6,7.69519937]
[1743292055906,2.3228044,1828.9,1828.6,7.69519937]
[1743292056105,0.2474589,1828.7,1828.6,7.69519937]
[1743292056306,2.3228044,1828.9,1828.6,7.69519937]
[1743292056479,0.2474589,1828.7,1828.6,7.69519937]
[1743292056681,2.3228044,1828.9,1828.6,17.82519937]
[1743292056879,0.2474589,1828.7,1828.6,17.82519937]
[1743292057080,2.3228044,1828.9,1828.6,17.82519937]
[1743292057310,0.2474589,1828.7,1828.6,10.9485]
[1743292057512,7.7905844,1828.9,1828.6,10.9485]
[1743292057680,0.2474589,1828.7,1828.6,10.9485]
[1743292057881,7.7905844,1828.9,1828.6,10.9485]
[1743292058082,0.2474589,1828.7,1828.6,10.9485]
[1743292058282,7.7905844,1828.9,1828.6,13.36968337]
[1743292058482,0.2474589,1828.7,1828.6,10.9485]
[1743292058682,7.7905844,1828.9,1828.6,10.9485]
[1743292058883,0.2474589,1828.7,1828.6,10.9485]
[1743292059284,7.7905844,1828.9,1828.6,10.9485]
[1743292059506,0.24804257,1828.7,1828.6,10.13]
[1743292059716,7.7905844,1828.9,1828.6,11.770198]
[1743292059902,0.24804257,1828.7,1828.6,10.13]
[1743292060101,7.7905844,1828.9,1828.6,10.13]
[1743292060410,0.24804257,1828.7,1828.6,10.13]
[1743292060607,7.7905844,1828.9,1828.6,10.13]
[1743292060795,0.24804257,1828.7,1828.6,10.13]
[1743292060998,7.7905844,1828.9,1828.6,10.13]
[1743292061213,0.24804257,1828.7,1828.6,10.13]
[1743292061417,13.2585844,1828.9,1828.6,10.13]
[1743292061712,7.7905844,1828.9,1828.6,10.13]
[1743292061891,2.3228044,1828.7,1828.6,10.13]
[1743292062402,7.7911644,1828.7,1828.6,10.13]
[1743292062599,8.03920697,1828.7,1828.4,15.59922]
[1743292062802,2.57084697,1828.7,1828.4,15.59922]
[1743292063189,8.28023697,1828.7,1828.4,10.13]
[1743292063925,2.81164697,1828.7,1828.4,15.59915]
[1743292064105,8.28004697,1828.7,1828.4,15.59915]
[1743292065487,8.28004697,1828.7,1828.4,10.13]
[1743292068321,8.28004697,1828.7,1828.3,21.87199]
[1743292068920,1.35185763,1828.5,1828.3,21.87199]
[1743292069090,1.35185763,1828.5,1828.3,24.059189]
[1743292069287,0.2474589,1828.4,1828.3,18.589749]
[1743292070493,1.35185763,1828.7,1828.6,5.46866]
[1743292072206,1.35185763,1828.7,1828.5,5.46884]
[1743292073292,1.35185763,1828.7,1828.5,10.93761]
[1743292073929,1.35185763,1828.7,1828.6,5.46866]
[1743292075516,1.35185763,1828.7,1828.6,7.358003]
[1743292076024,1.35185763,1828.8,1828.6,12.826453]
[1743292076329,1.35185763,1828.7,1828.6,12.826453]
[1743292076800,1.35185763,1828.7,1828.6,7.357793]
[1743292077001,1.35185763,1828.7,1828.5,5.46892]
[1743292077300,1.35185763,1828.6,1828.5,15.59892]
[1743292078597,1.35185763,1828.7,1828.5,15.59892]
[1743292080430,1.35185763,1828.6,1828.5,10.13]
[1743292083129,1.35185763,1828.6,1828.4,10.93839]
[1743292083513,0.2488451,1828.5,1828.4,10.93839]
[1743292084043,0.2488451,1828.5,1828.4,12.032229]
[1743292084244,0.2488451,1828.5,1828.4,12.827829]
[1743292084533,1.35185763,1828.7,1828.5,5.46872]
[1743292084712,1.35185763,1828.7,1828.5,10.93749]
[1743292085105,1.35185763,1828.7,1828.5,5.46872]
[1743292085734,1.35185763,1828.7,1828.5,10.93749]
[1743292086225,1.35185763,1828.7,1828.6,5.46866]
[1743292089218,1.35185763,1828.8,1828.6,5.46866]
[1743292089945,1.35185763,1828.8,1828.7,5.46836]
[1743292090150,1.35185763,1828.9,1828.7,10.93652]
[1743292090348,1.35185763,1828.9,1828.8,5.46806]
[1743292091450,1.35185763,1828.9,1828.7,5.46816]
[1743292091939,1.35185763,1828.8,1828.6,17.505768]
[1743292092123,1.35185763,1828.7,1828.6,10.13]
[1743292093043,2.56399197,1828.8,1828.6,10.13]
[1743292094742,2.56399197,1828.8,1828.5,10.93761]
[1743292095644,2.56399197,1828.8,1828.5,5.46876]
[1743292096752,2.56399197,1828.8,1828.5,10.93753]
[1743292097224,2.56399197,1828.8,1828.5,5.46876]
[1743292097647,2.56399197,1828.8,1828.4,10.13]
[1743292097648,5.46841,1828.7,1828.4,10.13]
[1743292097940,3.87187186,1828.8,1828.3,10.13]
[1743292097941,5.46907,1828.5,1828.3,10.13]
[1743292098140,8.03328197,1828.4,1828.1,5.47013]
[1743292098542,0.24928278,1828.3,1828.1,5.47013]
[1743292098844,0.24928278,1828.3,1828.1,5.47003]
[1743292099015,2.56399197,1828.4,1828.1,5.47003]
[1743292099345,0.24928278,1828.3,1828.1,5.47003]
[1743292099644,0.24928278,1828.3,1828.1,10.94003]
[1743292099848,0.24928278,1828.3,1828.2,5.46986]
[1743292101237,0.24928278,1828.3,1828.1,5.47]
[1743292104652,0.24928278,1828.3,1828.1,10.93998]
[1743292104835,0.24928278,1828.3,1828.1,13.128318]
[1743292105040,0.24928278,1828.3,1828.2,5.46986]
[1743292105345,0.24928278,1828.3,1828.1,5.46998]
[1743292108724,0.24928278,1828.3,1828.1,10.93994]
[1743292108955,0.24928278,1828.3,1828.1,5.46996]
[1743292109145,0.24928278,1828.3,1828.0,16.41382]
[1743292109353,0.24928278,1828.3,1828.1,5.47008]
[1743292111157,0.24928278,1828.3,1828.1,10.94009]
[1743292111359,0.24928278,1828.3,1828.2,5.46986]
[1743292111868,0.24928278,1828.3,1828.2,16.44115417]
[1743292112030,7.79125197,1828.8,1828.5,5.46871]
[1743292112427,0.24614537,1828.7,1828.5,5.46871]
[1743292112964,1.35173897,1828.6,1828.5,5.46871]
[1743292113167,1.35173897,1828.6,1828.4,5.46919]
[1743292113466,1.35173897,1828.5,1828.4,5.46919]
[1743292113772,1.59788434,1828.5,1828.4,5.46919]
[1743292113954,1.59788434,1828.5,1828.4,7.41309914]
[1743292114254,1.59788434,1828.5,1828.3,15.5994]
[1743292114752,1.59788434,1828.5,1828.3,21.06878]
[1743292114946,0.24614537,1828.5,1828.3,15.59938]
[1743292115252,0.24614537,1828.5,1828.4,5.46926]
[1743292115755,2.5642939,1828.7,1828.4,5.46926]
[1743292115955,0.24614537,1828.5,1828.4,5.46926]
[1743292116161,2.5642939,1828.7,1828.4,5.46926]
[1743292116322,0.24614537,1828.5,1828.4,5.46926]
[1743292116530,2.5642939,1828.7,1828.4,5.46926]
[1743292116847,0.24614537,1828.5,1828.4,5.46926]
[1743292117030,2.5642939,1828.7,1828.4,6.563124]
[1743292117231,0.24614537,1828.5,1828.4,5.46926]
[1743292117447,2.5642939,1828.7,1828.4,5.46926]
[1743292117631,0.24614537,1828.5,1828.4,5.46926]
[1743292117833,2.5642939,1828.7,1828.4,5.46926]
[1743292118337,0.24614537,1828.6,1828.4,5.46926]
[1743292118760,2.5642939,1828.7,1828.4,5.46926]
[1743292118976,0.24614537,1828.5,1828.4,5.46926]
[1743292119161,2.5642939,1828.7,1828.4,6.563124]
[1743292119359,0.24614537,1828.5,1828.4,5.46926]
[1743292119559,2.5642939,1828.7,1828.4,5.46926]
[1743292119764,0.24614537,1828.5,1828.4,5.46926]
[1743292119962,2.5642939,1828.7,1828.4,5.46926]
[1743292120131,0.24614537,1828.5,1828.4,5.46926]
[1743292120331,2.5642939,1828.7,1828.4,6.56193168]
[1743292120531,2.5642939,1828.7,1828.4,5.46926]
[1743292120532,0.24614537,1828.6,1828.4,5.46926]
[1743292120758,2.5642939,1828.7,1828.4,5.46926]
[1743292120957,0.24614537,1828.5,1828.4,5.46926]
[1743292121157,2.5642939,1828.7,1828.4,5.46926]
[1743292121359,0.24614537,1828.5,1828.4,5.46926]
[1743292121532,2.5642939,1828.7,1828.4,5.46926]
[1743292121729,0.24614537,1828.6,1828.4,5.46926]
[1743292121960,2.5642939,1828.7,1828.4,5.46926]
[1743292122176,0.24614537,1828.5,1828.4,5.46926]
[1743292122393,2.5642939,1828.7,1828.4,5.46926]
[1743292122549,0.24614537,1828.5,1828.4,5.46926]
[1743292122755,2.5642939,1828.7,1828.4,5.46926]
[1743292122957,0.2478237,1828.5,1828.4,5.46926]
[1743292123158,2.5642939,1828.7,1828.4,5.46926]
[1743292123463,0.2478237,1828.5,1828.4,5.46926]
[1743292123665,2.5642939,1828.7,1828.4,5.46926]
[1743292123851,0.2478237,1828.5,1828.4,5.46926]
[1743292124369,2.5642939,1828.7,1828.4,5.46926]
[1743292124558,0.2478237,1828.5,1828.4,5.46926]
[1743292124758,2.3234939,1828.8,1828.5,5.46877]
[1743292124961,2.3234939,1828.8,1828.5,10.9375]
[1743292125550,5.46839,1828.7,1828.4,6.27225]
[1743292125850,0.2408,1828.6,1828.4,5.46925]
[1743292126495,0.2408,1828.7,1828.4,5.46925]
[1743292128581,0.2478237,1828.6,1828.4,5.46925]
[1743292129077,0.2408,1828.7,1828.4,5.46925]
[1743292129284,0.2478237,1828.5,1828.4,5.46925]
[1743292129470,0.2408,1828.7,1828.4,5.46925]
[1743292129648,0.2478237,1828.5,1828.4,5.46925]
[1743292129855,0.2408,1828.7,1828.4,5.46925]
[1743292130055,0.2478237,1828.5,1828.4,5.46925]
[1743292130259,0.2408,1828.7,1828.4,5.46925]
[1743292130475,0.2478237,1828.5,1828.4,5.46925]
[1743292130680,0.2408,1828.7,1828.4,5.46925]
[1743292130887,0.2478237,1828.5,1828.4,5.46925]
[1743292131074,0.2408,1828.7,1828.4,5.46925]
[1743292131275,0.2478237,1828.5,1828.4,5.46925]
[1743292131472,0.2408,1828.7,1828.4,5.46925]
[1743292131676,0.2478237,1828.5,1828.4,5.46925]
[1743292132191,0.2408,1828.7,1828.4,5.46925]
[1743292132483,0.2478237,1828.5,1828.4,5.46925]
[1743292133081,2.3234939,1828.6,1828.3,15.59955]
[1743292133286,0.4886237,1828.5,1828.3,15.59955]
[1743292135259,0.4886237,1828.5,1828.3,10.13]
[1743292135462,7.7927539,1828.4,1828.0,5.47034]
[1743292135662,13.2622239,1828.4,1828.0,5.47034]
[1743292135855,0.2408,1828.3,1828.0,5.47034]
[1743292136061,0.48811297,1828.3,1828.0,5.47034]
[1743292141986,0.48811297,1828.3,1828.0,10.94068]
[1743292142169,0.24731297,1828.3,1828.2,5.46986]
[1743292142571,0.2408,1829.0,1828.7,5.46821]
[1743292142907,2.5642939,1829.0,1828.7,5.46833]
[1743292143106,2.3234939,1829.0,1828.8,5.46803]
[1743292143279,6.9434687,1829.1,1828.7,10.93658]
[1743292143475,36.9821739,1829.2,1828.8,5.46799]
[1743292143691,0.22187254,1829.0,1828.8,10.93586]
[1743292143891,36.9821739,1829.2,1828.8,5.46787]
[1743292144205,29.1918,1829.2,1828.6,0.7584]
[1743292144376,28.951,1829.2,1829.1,5.46716]
[1743292144691,13.2029795,1829.4,1829.0,5.46746]
[1743292145678,7.7366695,1829.4,1829.0,10.9347]
[1743292146072,7.7366695,1829.4,1829.1,5.46713]
[1743292146274,2.3938695,1829.4,1829.1,5.46713]
[1743292149500,2.3938695,1829.4,1829.1,5.467]
[1743292151399,2.3938695,1829.4,1829.1,12.027406]
[1743292151604,2.3938695,1829.4,1829.1,6.560406]
[1743292151909,2.3938695,1829.4,1829.1,5.46696]
[1743292152320,7.8601495,1829.4,1829.1,5.46696]
[1743292153015,2.3938695,1829.4,1829.1,5.46696]
[1743292153393,2.3938695,1829.4,1829.1,10.934]
[1743292154114,2.3938695,1829.4,1829.1,5.46696]
[1743292154313,2.3938695,1829.4,1829.1,6.013656]
[1743292154517,2.3938695,1829.4,1829.1,6.013616]
[1743292157615,2.3938695,1829.4,1829.1,11.480586]
[1743292158015,2.3938695,1829.4,1829.2,5.46683]
[1743292158220,2.3938695,1829.4,1829.2,6.21943]
[1743292158518,0.22742596,1829.3,1829.2,6.21943]
[1743292158714,2.3938695,1829.4,1829.2,6.21943]
[1743292158921,0.0703756,1829.4,1829.3,5.46657]
[1743292160017,7.7888839,1829.7,1829.3,5.46657]
[1743292160313,0.0287624,1829.4,1829.3,5.46657]
[1743292160718,0.0287624,1829.4,1829.3,6.27417]
[1743292161219,0.0287624,1829.4,1829.3,16.45883322]
[1743292161393,0.0287624,1829.4,1829.3,18.71906678]
[1743292165609,0.24956276,1829.4,1829.3,18.71906678]
[1743292165810,0.0287624,1829.4,1829.3,22.26906678]
[1743292166017,0.20272628,1829.4,1829.3,22.26906678]
[1743292166197,2.4e-06,1829.4,1829.3,22.26906678]
[1743292166602,0.05,1829.9,1829.8,5.46507]
[1743292166899,0.25557836,1829.9,1829.8,7.420347]
[1743292167292,0.25557836,1829.9,1829.8,7.915703]
[1743292171108,0.25557836,1829.9,1829.8,17.495703]
[1743292171819,0.25557836,1829.9,1829.8,12.030633]
[1743292172030,2.81987226,1829.9,1829.8,10.13]
[1743292172404,8.28464226,1829.9,1829.8,10.13]
[1743292172607,2.81987226,1829.9,1829.8,10.13]
[1743292174025,8.28464226,1829.9,1829.8,10.13]
[1743292175130,8.28464226,1829.9,1829.5,5.46593]
[1743292175501,8.28464226,1829.9,1829.5,10.93175]
[1743292176401,2.81987226,1829.9,1829.6,5.46565]
[1743292182033,0.25557836,1829.9,1829.8,5.46507]
[1743292185418,8.28466226,1829.9,1829.5,5.46576]
[1743292185630,2.81987226,1829.9,1829.6,5.46563]
[1743292186007,2.81987226,1829.9,1829.6,10.9311]
[1743292186237,0.25557836,1829.9,1829.7,6.27243]
[1743292186628,0.25557836,1829.9,1829.8,5.46507]
[1743292186813,0.25557836,1829.9,1829.4,15.59625]
[1743292186814,0.25557836,1829.9,1829.6,5.46537]
[1743292187020,0.25557836,1829.9,1829.6,11.477327]
[1743292187316,2.57907226,1829.9,1829.6,6.011907]
[1743292187929,2.57907226,1829.9,1829.6,11.477407]
[1743292188132,0.25557836,1829.9,1829.8,6.27217]
[1743292188306,0.25557836,1829.9,1829.8,7.96157622]
[1743292191506,0.25557836,1829.9,1829.8,18.09157622]
[1743292199950,0.05,1829.9,1829.8,18.09157622]
[1743292200249,0.26304212,1829.9,1829.8,18.09157622]
[1743292200436,0.05,1829.9,1829.8,18.09157622]
[1743292200613,0.26304212,1829.9,1829.8,18.09157622]
[1743292200817,0.05,1829.9,1829.8,18.09157622]
[1743292201039,0.26304212,1829.9,1829.8,18.09157622]
[1743292201244,0.05,1829.9,1829.8,21.64157622]
[1743292201444,0.26304212,1829.9,1829.8,21.64157622]
[1743292201742,0.05,1829.9,1829.8,21.64157622]
[1743292204160,0.05,1829.9,1829.8,17.28447622]
[1743292204821,0.26530959,1829.9,1829.8,17.28447622]
[1743292205023,0.05,1829.9,1829.8,17.28447622]
[1743292205222,0.26530959,1829.9,1829.8,17.28447622]
[1743292205425,0.05,1829.9,1829.8,17.28447622]
[1743292205651,0.26530959,1829.9,1829.8,17.28447622]
[1743292205820,0.05,1829.9,1829.8,17.28447622]
[1743292206021,0.26530959,1829.9,1829.8,17.28447622]
[1743292206220,0.05,1829.9,1829.8,17.28447622]
[1743292206446,0.26530959,1829.9,1829.8,17.28447622]
[1743292206647,0.05,1829.9,1829.8,17.28447622]
[1743292206849,0.26530959,1829.9,1829.8,17.28447622]
[1743292212137,0.26530959,1829.9,1829.8,7.15447622]
[1743292212953,0.26530959,1829.9,1829.8,7.96027622]
[1743292217961,0.26530959,1829.9,1829.8,18.09027622]
[1743292222968,0.26530959,1829.9,1829.8,17.28447622]
[1743292230038,0.26530959,1829.9,1829.8,18.09077622]
[1743292230445,0.05,1829.9,1829.8,18.64077622]
[1743292232245,0.26201796,1829.9,1829.8,18.64077622]
[1743292232446,0.05,1829.9,1829.8,18.64077622]
[1743292232660,0.26201796,1829.9,1829.8,18.64077622]
[1743292237776,0.05,1829.9,1829.8,18.64077622]
[1743292237964,0.26201796,1829.9,1829.8,18.64077622]
[1743292238162,0.05,1829.9,1829.8,18.64077622]
[1743292238375,0.26201796,1829.9,1829.8,18.64077622]
[1743292238991,0.26201796,1829.9,1829.8,23.72777622]
[1743292239966,0.05,1829.9,1829.8,23.72777622]
[1743292240781,0.26377346,1829.9,1829.8,23.72777622]
[1743292240982,0.05,1829.9,1829.8,23.72777622]
[1743292241200,0.26377346,1829.9,1829.8,23.72777622]
[1743292243776,0.05,1829.9,1829.8,23.72777622]
[1743292246313,0.350092,1830.6,1830.2,6.01388]
[1743292246638,0.350092,1830.6,1830.5,5.46298]
[1743292247401,2e-06,1830.6,1830.5,16.95138]
[1743292247581,1.18417256,1831.1,1831.0,5.46149]
[1743292247784,0.2408,1831.2,1831.1,5.46119]
[1743292248474,0.42612534,1831.2,1831.1,5.46119]
[1743292252795,0.42612534,1831.2,1830.9,10.13]
[1743292252796,0.2408,1831.1,1830.9,10.13]
[1743292253096,0.42883668,1831.0,1830.7,5.4621]
[1743292253303,0.42883668,1831.0,1830.8,5.46198]
[1743292253863,0.42883668,1831.0,1830.8,5.46188]
[1743292254057,0.2408,1831.0,1830.9,5.46179]
[1743292254270,0.42883668,1831.0,1830.9,5.46179]
[1743292255514,0.42883668,1831.0,1830.8,5.46188]
[1743292255664,0.42883668,1831.0,1830.7,5.46238]
[1743292255869,1.01785035,1831.0,1830.8,5.46204]
[1743292256069,0.42883668,1831.0,1830.8,5.46204]
[1743292256483,0.42883668,1831.0,1830.8,5.4619]
[1743292259615,0.42883668,1831.0,1830.7,5.46228]
[1743292259778,0.42883668,1831.0,1830.7,10.92449]
[1743292260515,0.2408,1830.9,1830.6,5.46257]
[1743292260699,0.43191509,1830.9,1830.6,5.46257]
[1743292260872,0.43191509,1830.9,1830.6,10.92513]
[1743292261272,0.43191509,1830.9,1830.7,5.46235]
[1743292261514,0.43191509,1830.9,1830.7,10.92453]
[1743292261812,0.43191509,1830.9,1830.7,5.46218]
[1743292262015,0.43191509,1830.9,1830.4,18.59327]
[1743292262167,0.43191509,1830.9,1830.8,5.46209]
[1743292263815,0.43191509,1830.9,1830.7,10.92454]
[1743292264122,0.43191509,1830.9,1830.8,5.46209]
[1743292267627,0.43191509,1830.9,1830.7,10.92445]
[1743292269602,0.43191509,1830.9,1830.8,5.46209]
[1743292275528,0.19111509,1830.9,1830.8,5.46209]
[1743292275827,0.2408,1831.0,1830.8,5.46209]
[1743292275999,0.19104176,1830.9,1830.8,6.22099]
[1743292276199,0.19104176,1830.9,1830.8,7.939308]
[1743292276427,0.2408,1831.4,1831.1,5.46115]
[1743292276749,0.19001598,1831.3,1831.1,5.46115]
[1743292277110,0.2408,1831.4,1831.1,5.46115]
[1743292277408,0.19001598,1831.2,1831.1,5.46115]
[1743292277610,0.2408,1831.4,1831.1,6.36302238]
[1743292277808,0.19001598,1831.2,1831.1,6.36302238]
[1743292278019,0.2408,1831.4,1831.1,6.36302238]
[1743292278220,0.19001598,1831.2,1831.1,6.36302238]
[1743292278406,0.2408,1831.4,1831.1,6.36302238]
[1743292278608,0.19001598,1831.2,1831.1,6.36302238]
[1743292278807,0.2408,1831.4,1831.1,6.36302238]
[1743292279018,0.19001598,1831.2,1831.1,6.36302238]
[1743292279207,0.2408,1831.4,1831.1,6.36302238]
[1743292279540,0.19001598,1831.3,1831.1,6.36302238]
[1743292279938,0.2408,1831.4,1831.1,6.36302238]
[1743292280140,0.19001598,1831.2,1830.9,15.59173]
[1743292280463,2.3234939,1831.3,1831.0,5.46148]
[1743292280908,0.19001598,1831.2,1831.0,5.46148]
[1743292282045,8.0248639,1831.4,1831.0,5.46128]
[1743292282251,0.19001598,1831.1,1831.0,5.46128]
[1743292282427,8.0248639,1831.4,1831.0,7.566584]
[1743292282759,8.0248639,1831.4,1831.0,13.027904]
[1743292282932,0.19001598,1831.3,1831.0,7.566584]
[1743292283125,8.0248639,1831.4,1831.0,7.566584]
[1743292283454,0.19001598,1831.2,1831.0,7.566584]
[1743292283628,8.0248639,1831.4,1831.0,7.566584]